bitfinex-derivatives/quotes_SOLF0:USTF0_20241231
["timestamp","ask_amount","ask_price","bid_price","bid_amount"]
[1735604216659,3.06,191.66,191.6,8.38559281]
[1735604216962,3.06,191.66,191.61,2.6142]
[1735604217261,3.06,191.66,191.62,8.38559281]
[1735604217461,2.6138,191.65,191.62,8.38559281]
[1735604218757,2.6139,191.64,191.62,8.38559281]
[1735604218963,11.44559281,191.68,191.62,10.99959281]
[1735604219263,2.6136,191.66,191.62,8.38559281]
[1735604219860,11.44559281,191.68,191.62,8.38559281]
[1735604220060,2.6138,191.65,191.62,10.99969281]
[1735604220964,2.614,191.63,191.6,8.38559281]
[1735604221164,8.38559281,191.66,191.6,8.38559281]
[1735604221565,2.614,191.64,191.6,8.38559281]
[1735604221761,11.44559281,191.68,191.6,8.38559281]
[1735604222161,2.614,191.63,191.6,8.38559281]
[1735604224062,8.38559281,191.66,191.55,1.4744]
[1735604224368,8.38559281,191.64,191.55,8.38559281]
[1735604224569,4.5853,191.63,191.55,8.38559281]
[1735604224957,8.38559281,191.62,191.55,8.38559281]
[1735604225369,2.6148,191.58,191.55,8.38559281]
[1735604226168,2.6145,191.59,191.57,8.38559281]
[1735604229071,2.6145,191.59,191.55,11.00059281]
[1735604232169,3.06,191.67,191.57,8.38559281]
[1735604232467,3.06,191.67,191.61,8.38559281]
[1735604233369,2.6137,191.65,191.61,10.99969281]
[1735604233865,2.6137,191.65,191.61,8.38559281]
[1735604234072,3.06,191.67,191.63,8.38559281]
[1735604234370,1.4917,191.69,191.65,8.38559281]
[1735604234569,2.6133,191.68,191.65,8.38559281]
[1735604234772,1.4917,191.69,191.65,8.38559281]
[1735604235066,2.6129,191.71,191.67,10.99889281]
[1735604235868,2.613,191.7,191.67,8.38559281]
[1735604236367,2.613,191.7,191.66,2.6136]
[1735604237172,3.06,191.73,191.64,13.09008609]
[1735604237370,3.06,191.73,191.67,2.6134]
[1735604237571,3.06,191.73,191.65,4.9468246]
[1735604237872,5.6726,191.73,191.68,2.6132]
[1735604238373,3.06,191.73,191.67,13.09008609]
[1735604238569,2.6129,191.72,191.67,13.09008609]
[1735604239465,3.06,191.73,191.64,13.09008609]
[1735604240780,2.6131,191.7,191.65,2.6137]
[1735604241070,3.06,191.73,191.65,2.6137]
[1735604241375,2.6133,191.69,191.64,15.70388609]
[1735604241874,2.6133,191.68,191.64,15.70388609]
[1735604242279,3.06,191.73,191.64,13.09008609]
[1735604242476,3.06,191.73,191.65,2.6137]
[1735604242776,2.6131,191.7,191.65,2.6137]
[1735604243378,2.6133,191.69,191.64,15.70388609]
[1735604243570,3.06,191.73,191.61,13.09008609]
[1735604243971,2.6131,191.7,191.62,2.6141]
[1735604244172,3.06,191.73,191.61,13.09008609]
[1735604244681,2.6135,191.67,191.63,2.614]
[1735604245970,2.6135,191.67,191.61,13.09008609]
[1735604246174,2.6136,191.66,191.62,2.6141]
[1735604246369,3.06,191.73,191.54,35.77974618]
[1735604246575,13.09008609,191.68,191.52,3.06]
[1735604246779,2.6145,191.6,191.54,13.09008609]
[1735604246978,7.5648,191.67,191.55,4.94691845]
[1735604247181,2.6142,191.62,191.57,2.6147]
[1735604247977,2.6143,191.61,191.57,2.6147]
[1735604249880,2.6144,191.6,191.56,2.6149]
[1735604250881,2.6147,191.58,191.54,15.70528609]
[1735604251081,7.5648,191.67,191.54,15.70528609]
[1735604251486,7.5648,191.67,191.55,2.615]
[1735604251487,2.6146,191.59,191.55,2.615]
[1735604253286,2.6146,191.59,191.54,15.70528609]
[1735604253988,3.06,191.62,191.54,15.70528609]
[1735604254183,2.6147,191.58,191.54,15.70528609]
[1735604256395,2.6147,191.58,191.55,8.38792781]
[1735604256882,2.6147,191.58,191.5,1.5744]
[1735604256883,8.38792781,191.59,191.5,1.5744]
[1735604257190,8.38792781,191.59,191.49,2.30425253]
[1735604257191,8.38792781,191.51,191.44,8.38792781]
[1735604257394,8.38792781,191.49,191.41,28.67703368]
[1735604257598,2.6164,191.46,191.42,8.38792781]
[1735604257987,3.06,191.48,191.42,8.38792781]
[1735604258190,2.6166,191.44,191.39,2.6172]
[1735604258391,3.06,191.43,191.37,13.12692007]
[1735604258990,3.06,191.43,191.34,13.12692007]
[1735604259599,2.6174,191.39,191.32,2.6182]
[1735604259802,3.06,191.38,191.32,2.6182]
[1735604260796,3.06,191.38,191.33,2.6181]
[1735604262999,1.5362,191.47,191.29,1.4953]
[1735604263000,3.06,191.4,191.37,2.6175]
[1735604263199,14.66312007,191.47,191.37,13.12692007]
[1735604263497,3.06,191.46,191.37,13.12692007]
[1735604264094,2.6166,191.45,191.39,2.6172]
[1735604264296,3.06,191.46,191.37,13.12692007]
[1735604265204,2.6167,191.43,191.38,2.6174]
[1735604265501,3.06,191.46,191.29,1.4953]
[1735604265698,2.6174,191.39,191.32,2.6181]
[1735604265899,3.06,191.38,191.31,13.12692007]
[1735604266202,3.06,191.37,191.33,2.6181]
[1735604266606,3.06,191.37,191.31,13.12692007]
[1735604267507,5.6775,191.37,191.32,2.6182]
[1735604267807,3.06,191.37,191.28,13.12692007]
[1735604268206,1.482,191.36,191.27,2.6189]
[1735604268505,2.618,191.34,191.27,2.6189]
[1735604268805,1.482,191.36,191.25,13.12692007]
[1735604269103,1.482,191.36,191.28,13.12692007]
[1735604269804,2.6179,191.34,191.28,15.74552007]
[1735604270102,2.6179,191.34,191.28,13.12692007]
[1735604271096,2.6176,191.37,191.31,13.12692007]
[1735604271496,5.6776,191.37,191.31,13.12692007]
[1735604272001,3.06,191.37,191.31,15.74512007]
[1735604272206,2.6177,191.36,191.31,15.74512007]
[1735604272905,3.06,191.35,191.31,15.74512007]
[1735604273100,3.06,191.35,191.31,13.12692007]
[1735604273309,3.06,191.35,191.32,2.6182]
[1735604273705,3.06,191.35,191.31,13.12692007]
[1735604274005,3.06,191.35,191.32,2.6182]
[1735604274603,5.6977,191.36,191.32,2.6182]
[1735604275300,5.6977,191.36,191.31,15.74522007]
[1735604275701,2.6178,191.35,191.31,15.74522007]
[1735604276105,3.08,191.36,191.29,2.6186]
[1735604276406,3.08,191.36,191.25,13.12692007]
[1735604277307,2.6188,191.29,191.25,13.12692007]
[1735604277503,3.08,191.29,191.25,13.12692007]
[1735604277702,3.08,191.29,191.22,13.12692007]
[1735604277904,2.6189,191.27,191.23,2.6194]
[1735604279004,2.6189,191.27,191.22,13.12692007]
[1735604279215,2.6189,191.27,191.22,15.74652007]
[1735604280407,2.6189,191.27,191.23,2.6194]
[1735604281002,2.6192,191.26,191.22,13.12692007]
[1735604284107,2.6192,191.26,191.22,15.74652007]
[1735604284508,3.08,191.28,191.26,2.6189]
[1735604285906,2.6186,191.3,191.26,2.6189]
[1735604286111,5.6986,191.3,191.26,2.6189]
[1735604288108,2.6182,191.32,191.27,2.6188]
[1735604288312,3.08,191.31,191.25,13.12692007]
[1735604288706,2.6185,191.31,191.27,2.6188]
[1735604288908,5.6985,191.31,191.27,2.6188]
[1735604289307,3.08,191.31,191.25,13.12692007]
[1735604289907,3.08,191.31,191.26,2.6189]
[1735604290107,3.08,191.31,191.25,13.12692007]
[1735604290507,3.08,191.31,191.28,2.6186]
[1735604290704,5.6981,191.33,191.28,2.6186]
[1735604290909,4.5252,191.37,191.3,2.6184]
[1735604291109,3.08,191.36,191.28,13.12692007]
[1735604291714,2.6179,191.34,191.3,2.6184]
[1735604291905,3.08,191.35,191.28,13.12692007]
[1735604292610,3.08,191.35,191.3,2.6185]
[1735604292611,2.6179,191.35,191.3,2.6185]
[1735604292811,5.6979,191.35,191.3,2.6185]
[1735604293010,3.08,191.35,191.28,13.12692007]
[1735604293211,7.1537,191.37,191.34,2.6179]
[1735604293612,7.1537,191.37,191.28,13.12692007]
[1735604293920,4.536,191.37,191.28,13.12692007]
[1735604294717,4.536,191.37,191.27,28.67703368]
[1735604295113,6.1298,191.37,191.25,20.29617849]
[1735604296418,6.1298,191.37,191.25,13.12692007]
[1735604297020,6.1298,191.37,191.28,13.12692007]
[1735604297621,2.618,191.34,191.28,13.12692007]
[1735604299025,5.6978,191.35,191.28,13.12692007]
[1735604299216,3.08,191.35,191.28,13.12692007]
[1735604299417,3.08,191.35,191.24,28.67703368]
[1735604299418,3.08,191.35,191.27,2.6189]
[1735604299725,2.6185,191.31,191.27,2.6189]
[1735604301622,3.08,191.3,191.24,7.16925842]
[1735604302214,2.6189,191.28,191.24,7.16925842]
[1735604302420,3.08,191.29,191.22,13.12692007]
[1735604302617,2.6186,191.3,191.22,13.12692007]
[1735604303125,3.0498,191.37,191.27,13.12692007]
[1735604303329,3.0498,191.37,191.3,2.6184]
[1735604303330,2.6179,191.34,191.3,2.6184]
[1735604303631,3.08,191.36,191.27,13.12692007]
[1735604303826,2.6182,191.33,191.29,2.6186]
[1735604304023,3.08,191.36,191.29,2.6186]
[1735604305919,2.6182,191.33,191.29,2.6186]
[1735604306324,3.08,191.36,191.27,15.74582007]
[1735604306526,2.6184,191.31,191.27,15.74582007]
[1735604308228,2.6187,191.29,191.27,8.41212491]
[1735604308428,2.6187,191.29,191.21,28.67703368]
[1735604308429,3.08,191.31,191.25,8.41212491]
[1735604309329,2.6188,191.28,191.25,8.41212491]
[1735604310330,2.6188,191.28,191.23,13.14569958]
[1735604311128,2.6188,191.28,191.24,2.6192]
[1735604312430,2.6189,191.27,191.24,2.6192]
[1735604314341,3.08,191.31,191.23,13.14569958]
[1735604314544,3.08,191.31,191.2,13.14569958]
[1735604314840,3.1885,191.3,191.2,13.14569958]
[1735604315138,2.6193,191.25,191.21,2.6196]
[1735604315526,3.08,191.31,191.2,13.14569958]
[1735604315731,3.08,191.3,191.23,13.14569958]
[1735604316333,2.6189,191.27,191.24,2.6193]
[1735604318536,2.6193,191.25,191.21,2.6197]
[1735604318739,3.08,191.29,191.21,2.6197]
[1735604319441,2.619,191.27,191.21,2.6197]
[1735604319739,3.08,191.29,191.21,2.6197]
[1735604320438,2.6193,191.25,191.21,2.6197]
[1735604321237,13.14569958,191.33,191.2,13.14569958]
[1735604321238,2.6196,191.23,191.2,13.14569958]
[1735604321436,3.08,191.24,191.18,3.31812365]
[1735604322040,3.08,191.24,191.17,15.76589958]
[1735604322434,2.6199,191.2,191.17,13.14569958]
[1735604322835,3.08,191.24,191.14,13.14569958]
[1735604323740,2.6203,191.17,191.14,13.14569958]
[1735604323943,3.08,191.24,191.14,13.14569958]
[1735604324739,2.62,191.2,191.15,2.6204]
[1735604325131,2.62,191.2,191.14,13.14569958]
[1735604325335,2.62,191.2,191.16,2.6204]
[1735604326843,2.6195,191.23,191.19,2.62]
[1735604328346,2.6196,191.22,191.19,2.62]
[1735604329443,2.6196,191.22,191.17,13.14569958]
[1735604329644,2.6199,191.2,191.17,2.6202]
[1735604329843,2.6199,191.2,191.14,13.14569958]
[1735604330245,2.6199,191.2,191.16,8.42192257]
[1735604331242,2.6199,191.2,191.16,11.04222257]
[1735604332349,2.6199,191.2,191.18,8.42192257]
[1735604332543,3.08,191.24,191.18,8.42192257]
[1735604332748,3.08,191.24,191.2,11.04162257]
[1735604333748,2.6196,191.22,191.19,2.62]
[1735604334846,2.6196,191.22,191.18,8.42192257]
[1735604335041,3.08,191.24,191.18,11.04202257]
[1735604335241,3.08,191.24,191.18,8.42192257]
[1735604335644,2.62,191.19,191.18,8.42192257]
[1735604337250,2.62,191.19,191.16,11.04232257]
[1735604338643,2.6201,191.18,191.16,8.42192257]
[1735604338946,8.42192257,191.21,191.13,8.42192257]
[1735604339251,2.62,191.19,191.16,2.6204]
[1735604339649,3.08,191.21,191.15,8.42192257]
[1735604339849,2.6203,191.18,191.15,8.42192257]
[1735604340650,2.6204,191.17,191.15,8.42192257]
[1735604340954,8.42192257,191.19,191.08,1.486]
[1735604341154,8.42192257,191.19,191.12,8.42192257]
[1735604341649,8.42192257,191.15,191.07,8.42192257]
[1735604341948,8.42192257,191.13,191.07,8.42192257]
[1735604342152,2.6214,191.09,191.07,8.42192257]
[1735604342949,4.4882,191.2,191.07,8.42192257]
[1735604343149,11.50192257,191.19,191.11,8.42192257]
[1735604344256,13.17002791,191.18,191.03,35.87293426]
[1735604344456,13.17002791,191.18,191.04,13.17002791]
[1735604345056,2.6211,191.11,191.06,2.6217]
[1735604345257,3.08,191.12,191.06,2.6217]
[1735604345854,2.6214,191.09,191.05,2.6219]
[1735604346555,3.08,191.12,191.04,13.17002791]
[1735604346757,2.6218,191.06,191.02,2.6223]
[1735604346954,3.08,191.05,190.95,7.16925842]
[1735604347156,2.6226,191.01,190.96,2.6231]
[1735604348959,2.6224,191.02,190.97,2.623]
[1735604349160,3.08,191.04,190.95,13.17002791]
[1735604349457,2.6224,191.02,190.97,2.623]
[1735604349648,3.08,191.04,190.95,13.17002791]
[1735604350050,1.4876,191.03,190.95,13.17002791]
[1735604350252,2.6229,190.98,190.95,13.17002791]
[1735604351160,2.6229,190.98,190.93,2.6236]
[1735604352060,2.6229,190.98,190.94,2.6234]
[1735604352458,5.7028,190.99,190.94,2.6234]
[1735604352961,3.08,190.99,190.93,2.6235]
[1735604353157,5.7027,190.99,190.91,13.17002791]
[1735604353753,1.5279,191.1,190.97,13.17002791]
[1735604353958,1.5123,191.09,191.0,13.17002791]
[1735604354257,1.5123,191.09,191.03,13.17002791]
[1735604354863,2.6215,191.08,191.03,15.79212791]
[1735604356859,1.5123,191.09,191.03,15.79212791]
[1735604357061,2.6216,191.07,191.03,15.79212791]
[1735604357363,14.75322791,191.14,191.03,15.79212791]
[1735604357364,3.08,191.12,191.03,13.17002791]
[1735604358164,3.08,191.12,191.06,13.17002791]
[1735604358579,5.701,191.12,191.07,2.6215]
[1735604358767,1.5832,191.14,191.06,13.17002791]
[1735604359068,1.5832,191.14,191.08,2.6215]
[1735604359069,2.6209,191.13,191.08,2.6215]
[1735604359261,2.6209,191.13,191.06,13.17002791]
[1735604359667,2.6209,191.13,191.08,2.6215]
[1735604361272,3.08,191.15,191.08,2.6215]
[1735604361466,3.08,191.15,191.05,13.17002791]
[1735604361969,1.5392,191.16,191.05,13.17002791]
[1735604362169,3.082,191.19,191.08,13.17002791]
[1735604362465,6.162,191.19,191.11,13.17002791]
[1735604362673,2.6203,191.18,191.13,2.6207]
[1735604362973,4.6556,191.19,191.11,13.17002791]
[1735604363273,3.08,191.22,191.11,13.17002791]
[1735604363565,3.08,191.22,191.14,13.17002791]
[1735604363776,5.6996,191.22,191.17,2.6202]
[1735604364178,3.08,191.22,191.14,13.17002791]
[1735604364474,3.0463,191.24,191.14,13.17002791]
[1735604365082,2.6197,191.21,191.16,2.6204]
[1735604365468,3.0463,191.24,191.14,13.17002791]
[1735604366473,2.6196,191.22,191.17,2.6203]
[1735604367371,2.6197,191.21,191.17,2.6203]
[1735604367876,3.0463,191.24,191.14,13.17002791]
[1735604368078,2.6199,191.2,191.14,13.17002791]
[1735604368966,2.6201,191.18,191.14,13.17002791]
[1735604369571,2.6203,191.17,191.14,13.17002791]
[1735604369872,2.6203,191.17,191.11,17.83432791]
[1735604370273,2.6203,191.17,191.12,2.6208]
[1735604371679,2.6203,191.17,191.13,2.6208]
[1735604371879,2.6202,191.18,191.13,2.6208]
[1735604372472,3.08,191.2,191.13,2.6208]
[1735604372678,3.08,191.2,191.11,15.79102791]
[1735604372878,3.08,191.2,191.08,13.17002791]
[1735604373174,1.5824,191.19,191.08,13.17002791]
[1735604373586,2.6207,191.14,191.09,2.6213]
[1735604375583,2.6207,191.14,191.08,13.17002791]
[1735604375789,2.6207,191.14,191.1,2.6212]
[1735604380185,1.5824,191.19,191.08,13.17002791]
[1735604380790,2.6211,191.12,191.08,13.17002791]
[1735604381689,2.6211,191.12,191.08,15.79152791]
[1735604382289,3.08,191.15,191.11,2.621]
[1735604383386,5.7006,191.15,191.11,2.621]
[1735604383794,3.08,191.15,191.12,2.6209]
[1735604385692,3.08,191.15,191.14,2.6207]
[1735604385894,2.6202,191.18,191.14,2.6207]
[1735604386192,4.6424,191.19,191.11,13.17002791]
[1735604386392,2.6204,191.16,191.13,2.6208]
[1735604386802,4.6424,191.19,191.09,3.06]
[1735604387095,2.6207,191.15,191.11,2.621]
[1735604387298,4.6424,191.19,191.08,13.17002791]
[1735604387590,2.6211,191.12,191.08,2.6215]
[1735604387889,2.6211,191.12,191.04,3.06]
[1735604387890,2.6211,191.12,191.05,13.17002791]
[1735604389205,2.6211,191.12,191.03,3.06]
[1735604389397,2.6211,191.12,191.06,13.17002791]
[1735604389701,3.06,191.16,191.06,13.17002791]
[1735604390303,2.6208,191.13,191.09,2.6214]
[1735604392204,2.6208,191.13,191.1,8.4278662]
[1735604392906,3.06,191.16,191.1,8.4278662]
[1735604393806,6.1845,191.16,191.1,8.4278662]
[1735604396411,2.621,191.12,191.1,8.4278662]
[1735604399505,8.4278662,191.15,191.07,2.6215]
[1735604399704,8.4278662,191.15,191.07,8.4278662]
[1735604399911,8.4278662,191.13,191.07,8.4278662]
[1735604400208,2.6215,191.08,191.07,8.4278662]
[1735604400609,2.6219,191.05,191.04,8.4278662]
[1735604401606,2.6218,191.06,191.04,8.4278662]
[1735604401903,3.06,191.11,191.04,8.4278662]
[1735604402109,3.06,191.11,191.06,8.4278662]
[1735604402305,2.6213,191.1,191.06,8.4278662]
[1735604402504,3.06,191.11,191.06,11.0495662]
[1735604403412,2.6214,191.09,191.06,11.0495662]
[1735604403712,3.06,191.11,191.06,8.4278662]
[1735604404110,2.6215,191.09,191.06,8.4278662]
[1735604404804,6.1845,191.16,191.08,8.4278662]
[1735604405110,1.5581,191.19,191.14,8.4278662]
[1735604405316,60.73677364,191.2,191.17,8.4278662]
[1735604405507,60.73677364,191.2,191.0,1.5741]
[1735604405508,58.11687364,191.2,191.19,8.4278662]
[1735604405905,3.06,191.24,191.19,8.4278662]
[1735604406310,2.6196,191.22,191.17,13.15456496]
[1735604406610,3.06,191.24,191.17,13.15456496]
[1735604406816,2.6196,191.22,191.17,13.15456496]
[1735604407316,3.06,191.24,191.12,4.5668]
[1735604407317,3.06,191.24,191.14,13.15456496]
[1735604408411,16.21456496,191.24,191.11,13.15456496]
[1735604408710,0.80704599,191.23,191.11,13.15456496]
[1735604408914,13.15456496,191.21,191.08,13.15456496]
[1735604409123,2.6203,191.18,191.08,15.77596496]
[1735604409422,3.06,191.17,191.08,15.77596496]
[1735604409614,3.06,191.17,191.08,13.15456496]
[1735604409615,2.6212,191.11,191.08,13.15456496]
[1735604409811,3.06,191.17,191.08,13.15456496]
[1735604410006,3.06,191.17,191.05,13.15456496]
[1735604411213,2.6213,191.1,191.05,15.77646496]
[1735604412721,3.06,191.17,191.05,13.15456496]
[1735604413818,3.06,191.17,191.06,2.6218]
[1735604414116,3.06,191.17,191.05,13.15456496]
[1735604414516,3.06,191.17,191.08,2.6214]
[1735604414713,3.06,191.17,191.05,13.15456496]
[1735604414919,3.06,191.17,191.08,13.15456496]
[1735604415117,2.6206,191.15,191.08,15.77606496]
[1735604415322,3.06,191.17,191.08,13.15456496]
[1735604417820,3.0114,191.2,191.08,13.15456496]
[1735604418027,3.06,191.17,191.08,13.15456496]
[1735604418523,2.6211,191.12,191.08,15.77606496]
[1735604419534,3.06,191.17,191.08,15.77606496]
[1735604419821,2.6211,191.11,191.08,15.77606496]
[1735604420623,3.06,191.17,191.08,15.77606496]
[1735604420824,3.06,191.17,191.1,2.6212]
[1735604421615,1.5202,191.2,191.11,13.15456496]
[1735604422622,4.5178,191.22,191.11,14.68766496]
[1735604422823,2.62,191.19,191.15,2.6205]
[1735604423918,2.6198,191.21,191.14,13.15456496]
[1735604424315,2.6198,191.21,191.15,3.06]
[1735604424921,2.62,191.19,191.15,3.06]
[1735604425119,4.532,191.25,191.14,13.15456496]
[1735604425321,4.532,191.25,191.18,2.6201]
[1735604425721,4.532,191.25,191.17,13.15456496]
[1735604426021,1.472,191.25,191.19,2.6199]
[1735604426223,2.6195,191.23,191.19,2.6199]
[1735604427823,1.472,191.25,191.17,13.15456496]
[1735604428827,2.6198,191.21,191.17,15.77476496]
[1735604430027,1.472,191.25,191.19,2.62]
[1735604430028,2.6195,191.23,191.19,2.62]
[1735604430430,2.6192,191.25,191.21,2.6197]
[1735604430826,3.06,191.29,191.21,2.6197]
[1735604431030,3.06,191.29,191.2,13.15456496]
[1735604431934,0.80686043,191.28,191.17,13.15456496]
[1735604432429,3.06,191.29,191.17,13.15456496]
[1735604432730,0.80684657,191.28,191.17,13.15456496]
[1735604433330,0.80684657,191.28,191.14,13.15456496]
[1735604433331,13.96141153,191.28,191.14,13.15456496]
[1735604433533,0.80684657,191.27,191.14,13.15456496]
[1735604433737,2.6194,191.24,191.14,15.77516496]
[1735604434032,3.06,191.23,191.14,15.77516496]
[1735604434233,3.06,191.22,191.14,15.77516496]
[1735604434929,2.6201,191.19,191.14,15.77516496]
[1735604435143,3.06,191.22,191.14,15.77516496]
[1735604435532,2.6203,191.17,191.14,15.77516496]
[1735604436429,3.06,191.22,191.15,2.6204]
[1735604436731,3.06,191.22,191.14,13.15456496]
[1735604436927,3.06,191.22,191.17,13.15456496]
[1735604437131,4.6615,191.26,191.2,2.6198]
[1735604437337,3.06,191.26,191.2,13.15456496]
[1735604437632,2.6191,191.26,191.2,13.15456496]
[1735604438032,4.6422,191.3,191.2,13.15456496]
[1735604438236,2.6192,191.25,191.22,2.6195]
[1735604438436,4.6422,191.3,191.22,2.6195]
[1735604438938,2.6192,191.26,191.22,2.6195]
[1735604439538,3.06,191.29,191.22,2.6195]
[1735604439738,2.6192,191.25,191.2,13.15456496]
[1735604440032,3.06,191.29,191.21,2.6197]
[1735604440237,3.06,191.29,191.2,13.15456496]
[1735604440738,2.6195,191.23,191.2,13.15456496]
[1735604441238,3.06,191.29,191.2,13.15456496]
[1735604443536,2.619,191.27,191.2,13.15456496]
[1735604443739,1.5822,191.3,191.23,13.15456496]
[1735604444444,2.6189,191.28,191.24,2.6192]
[1735604444639,1.6091,191.32,191.23,13.15456496]
[1735604444841,2.6185,191.3,191.26,2.6189]
[1735604446145,3.06,191.34,191.23,13.15456496]
[1735604446337,2.6184,191.31,191.27,2.6188]
[1735604447247,3.06,191.34,191.23,13.15456496]
[1735604448042,16.21456496,191.34,191.23,13.15456496]
[1735604448646,2.6191,191.26,191.23,13.15456496]
[1735604448838,16.21456496,191.34,191.23,13.15456496]
[1735604449040,0.80663619,191.33,191.23,13.15456496]
[1735604449244,2.6191,191.26,191.23,13.15456496]
[1735604455053,2.6191,191.26,191.23,15.77396496]
[1735604457439,16.21456496,191.34,191.23,13.15456496]
[1735604457440,2.6184,191.31,191.23,13.15456496]
[1735604457648,16.21456496,191.34,191.23,13.15456496]
[1735604457840,0.80665338,191.33,191.23,13.15456496]
[1735604458045,2.6191,191.26,191.23,13.15456496]
[1735604458250,2.6191,191.26,191.25,8.41502305]
[1735604463153,3.06,191.29,191.19,2.6199]
[1735604463354,8.41502305,191.28,191.21,8.41502305]
[1735604463559,12.87892305,191.28,191.21,8.41502305]
[1735604463746,2.6196,191.22,191.21,8.41502305]
[1735604467161,1.5095,191.28,191.21,8.41502305]
[1735604467460,3.06,191.3,191.26,8.41502305]
[1735604468463,2.6189,191.27,191.26,8.41502305]
[1735604470760,1.5012,191.33,191.26,8.41502305]
[1735604470960,1.5012,191.33,191.3,8.41502305]
[1735604471562,2.6183,191.32,191.3,8.41502305]
[1735604472766,3.92947889,191.36,191.3,8.41502305]
[1735604472965,2.6184,191.31,191.3,8.41502305]
[1735604474762,2.6182,191.32,191.3,8.41502305]
[1735604474965,3.92947889,191.37,191.3,8.41502305]
[1735604475168,61.17687364,191.38,191.32,8.41502305]
[1735604475363,2.6181,191.33,191.32,8.41502305]
[1735604475566,8.41502305,191.37,191.3,8.41502305]
[1735604476762,2.6183,191.32,191.3,8.41502305]
[1735604477168,8.41502305,191.37,191.3,8.41502305]
[1735604477374,8.41502305,191.35,191.28,8.41502305]
[1735604477569,2.6186,191.29,191.28,8.41502305]
[1735604478063,2.6186,191.29,191.26,8.41502305]
[1735604478269,2.619,191.27,191.26,8.41502305]
[1735604483682,8.41502305,191.31,191.24,8.41502305]
[1735604483977,2.6191,191.26,191.24,8.41502305]
[1735604484183,8.41502305,191.31,191.24,8.41502305]
[1735604484374,8.41502305,191.29,191.21,8.41502305]
[1735604484679,3.06,191.28,191.21,8.41502305]
[1735604485777,3.06,191.28,191.23,8.41502305]
[1735604487878,2.6189,191.28,191.25,8.41502305]
[1735604488878,2.6189,191.27,191.25,8.41502305]
[1735604490175,8.41502305,191.29,191.23,8.41502305]
[1735604490575,8.41502305,191.31,191.23,8.41502305]
[1735604490780,2.6193,191.25,191.23,8.41502305]
[1735604491079,8.41502305,191.31,191.23,8.41502305]
[1735604491575,0.80675512,191.3,191.23,8.41502305]
[1735604491883,8.41502305,191.29,191.23,8.41502305]
[1735604492075,2.6195,191.23,191.21,8.41502305]
[1735604493778,2.6196,191.22,191.21,8.41502305]
[1735604495078,2.6196,191.22,191.16,4.6329]
[1735604495079,8.41502305,191.25,191.16,8.41502305]
[1735604495278,4.4432,191.24,191.16,8.41502305]
[1735604495676,2.6201,191.19,191.16,8.41502305]
[1735604496076,4.4432,191.24,191.18,8.41502305]
[1735604496271,2.6196,191.23,191.2,8.41502305]
[1735604496479,4.4432,191.24,191.2,8.41502305]
[1735604497474,2.6196,191.22,191.2,8.41502305]
[1735604497983,2.6202,191.18,191.17,8.41502305]
[1735604498477,8.41502305,191.19,191.09,37.33600622]
[1735604498674,2.6208,191.14,191.1,8.41502305]
[1735604499770,2.6209,191.13,191.1,8.41502305]
[1735604500070,9.92842305,191.17,191.1,8.41502305]
[1735604500275,1.5134,191.17,191.08,13.16774667]
[1735604501078,2.6208,191.14,191.1,2.6212]
[1735604501283,1.5134,191.17,191.08,13.16774667]
[1735604501680,2.6208,191.14,191.09,2.6213]
[1735604502176,1.5134,191.17,191.08,13.16774667]
[1735604502884,2.6207,191.15,191.11,2.6211]
[1735604503076,2.6207,191.15,191.08,13.16774667]
[1735604503680,1.5134,191.17,191.08,13.16774667]
[1735604503877,2.6207,191.14,191.1,2.6212]
[1735604508082,1.5134,191.17,191.1,2.6212]
[1735604508283,2.6208,191.14,191.1,2.6212]
[1735604509079,1.5134,191.17,191.08,13.16774667]
[1735604509280,2.6212,191.11,191.07,2.6216]
[1735604509886,2.6212,191.11,191.05,16.22774667]